bitfinex/quotes_SOLUSD_20220103
["timestamp","ask_amount","ask_price","bid_price","bid_amount"]
[1641221737170,77.0897,174.05,173.86,228.4507383]
[1641221737570,77.0897,174.05,173.86,171.2707383]
[1641221737776,85.7096,174.05,173.86,171.2707383]
[1641221738974,85.7096,174.05,173.86,171.0107383]
[1641221740075,77.0897,174.05,173.87,57.18]
[1641221740279,1.2663,174.07,173.97,8.6188]
[1641221740479,1.2663,174.07,173.98,2.22721]
[1641221740875,1.2663,174.07,173.98,2.48721]
[1641221742378,1.2663,174.07,174.01,2.60690509]
[1641221742577,1.2754,174.08,174.01,2.86690509]
[1641221742782,73.9712,174.12,174.01,2.86690509]
[1641221742979,74.2312,174.12,174.01,2.86690509]
[1641221743377,8.6179,174.1,174.01,11.48440509]
[1641221743580,8.8779,174.1,174.01,11.48440509]
[1641221743779,8.6179,174.1,174.01,11.48440509]
[1641221743980,75.4095,174.13,174.01,11.48440509]
[1641221744203,1.2843,174.14,174.01,19.58440509]
[1641221744405,1.62090808,174.15,174.01,25.69640509]
[1641221744607,6.57785664,174.16,174.08,8.6137]
[1641221744807,6.57785664,174.16,174.09,2.35851066]
[1641221745410,6.57785664,174.16,174.04,28.7124]
[1641221745613,6.57785664,174.16,174.04,28.9724]
[1641221746414,15.19255664,174.16,174.07,8.6145]
[1641221746814,15.19255664,174.16,174.03,8.1]
[1641221748018,8.6174,174.11,174.02,2.85214426]
[1641221748215,8.6174,174.11,174.01,16.7172]
[1641221748416,8.8774,174.11,174.01,8.1]
[1641221748617,8.8774,174.11,173.98,99.99251245]
[1641221749018,8.8774,174.11,173.94,8.1]
[1641221749019,16.9774,174.11,173.94,8.1]
[1641221749218,24.3674,174.11,173.91,74.99015405]
[1641221749421,8.49693321,174.1,173.91,2.54175405]
[1641221749619,8.49693321,174.1,173.89,346.25911524]
[1641221749620,8.6224,174.01,173.89,346.25911524]
[1641221749823,23.4534,174.01,173.89,346.25911524]
[1641221750021,23.7134,174.01,173.89,346.25911524]
[1641221750421,23.4534,174.01,173.9,25.43429718]
[1641221750623,23.4534,174.01,173.9,28.01155719]
[1641221751023,16.7224,174.01,173.9,28.27155719]
[1641221752224,8.1,174.01,173.9,36.89405719]
[1641221752422,6.9730228,174.01,173.9,36.89405719]
[1641221753224,2.89900808,174.05,173.9,38.32075087]
[1641221753421,10.99900808,174.05,173.9,38.32075087]
[1641221753622,10.99900808,174.05,173.9,46.42075087]
[1641221753822,9.3781,174.05,173.9,46.42075087]
[1641221754024,72.026,174.07,173.9,56.41765819]
[1641221754223,1.62090808,174.08,173.9,61.87865819]
[1641221754722,1.62090808,174.08,173.92,101.23]
[1641221754922,1.62090808,174.08,174.0,8.6164]
[1641221755123,1.62090808,174.08,174.01,33.99816628]
[1641221755527,1.62090808,174.13,174.01,34.25816628]
[1641221755727,1.62090808,174.13,174.02,8.1]
[1641221755925,1.62090808,174.13,174.02,15.124]
[1641221756126,1.62090808,174.13,174.02,15.384]
[1641221756327,1.62090808,174.13,174.06,8.6149]
[1641221756526,73.6019,174.14,174.06,8.8749]
[1641221756727,73.6019,174.14,174.07,2.34186206]
[1641221757125,1.2533,174.14,174.07,2.60186206]
[1641221757326,6.57785664,174.16,174.07,2.60186206]
[1641221757526,6.57785664,174.16,174.07,19.31626206]
[1641221757729,6.57785664,174.16,174.07,20.74295574]
[1641221758629,6.57785664,174.16,174.07,19.31626206]
[1641221760231,6.57785664,174.16,174.07,16.9744]
[1641221760435,6.57785664,174.16,174.02,36.8155]
[1641221760632,6.83785664,174.16,174.03,8.6162]
[1641221761034,8.26455032,174.16,173.93,175.405]
[1641221761233,8.26455032,174.16,173.88,8.6347]
[1641221761234,88.7359,174.15,173.99,2.93109031]
[1641221761433,8.6193,174.07,173.99,2.93109031]
[1641221761633,8.6193,174.07,173.95,16.7202]
[1641221761832,8.6193,174.07,173.95,8.1]
[1641221761833,8.8793,174.07,173.95,8.1]
[1641221762034,8.8793,174.07,173.91,8.1]
[1641221762035,10.30599368,174.07,173.91,8.1]
[1641221762234,8.1,174.06,173.91,8.1]
[1641221762635,9.78669368,174.06,173.92,28.27412427]
[1641221762834,9.78669368,174.06,173.92,27.77412427]
[1641221762835,12.28269368,174.06,173.92,27.77412427]
[1641221763340,8.6221,174.02,173.92,36.39612427]
[1641221763536,2.496,174.06,173.93,8.1]
[1641221763835,2.496,174.06,173.93,9.52669368]
[1641221764036,2.496,174.06,173.95,2.71183803]
[1641221764236,2.496,174.06,173.95,10.81183803]
[1641221764436,2.496,174.06,173.96,29.4880583]
[1641221764636,11.1157,174.06,173.97,8.6192]
[1641221764839,11.3757,174.06,173.95,2.71183803]
[1641221765438,11.3757,174.06,173.95,2.97183803]
[1641221766438,11.1157,174.06,173.95,11.59223803]
[1641221766640,8.6189,174.08,173.95,11.59223803]
[1641221767041,8.8789,174.08,173.95,11.59223803]
[1641221769240,8.6189,174.08,173.95,11.59223803]
[1641221769741,8.6189,174.08,173.95,19.69223803]
[1641221769941,1.3464,174.1,173.95,19.69223803]
[1641221770143,1.3374,174.13,173.95,25.93693171]
[1641221770546,1.3374,174.13,173.97,101.23]
[1641221770741,1.3057,174.14,174.05,8.6147]
[1641221770944,1.3057,174.14,174.06,2.42066771]
[1641221771147,1.3057,174.14,174.05,0.26]
[1641221771744,1.3057,174.14,174.04,8.36]
[1641221772244,1.3057,174.14,174.05,2.60175996]
[1641221772445,1.3057,174.14,174.06,8.6151]
[1641221773448,1.3057,174.14,174.06,8.8751]
[1641221773650,79.4184,174.15,174.07,22.60210329]
[1641221773846,6.57785664,174.16,174.09,2.85613592]
[1641221774949,6.57785664,174.16,174.09,3.11613592]
[1641221775153,6.57785664,174.16,174.0,80.2063]
[1641221775348,6.57785664,174.16,174.04,8.1]
[1641221775349,15.19265664,174.16,174.04,8.1]
[1641221776151,15.45265664,174.16,174.05,26.1945958]
[1641221776354,15.19265664,174.16,174.05,34.2945958]
[1641221776750,15.19265664,174.16,174.05,34.5545958]
[1641221776951,6.57785664,174.16,174.05,34.5545958]
[1641221777351,6.57785664,174.16,174.09,8.614]
[1641221777553,6.57785664,174.16,174.1,25.52716589]
[1641221777971,6.57785664,174.16,174.1,41.24516589]
[1641221779375,6.57785664,174.16,174.1,49.85856589]
[1641221780278,6.57785664,174.16,174.1,42.50056589]
[1641221781084,6.57785664,174.16,174.1,16.7134]
[1641221782181,6.57785664,174.16,174.11,2.40535443]
[1641221783080,6.57785664,174.16,174.11,11.01845443]
[1641221783379,6.57785664,174.16,174.11,11.27845443]
[1641221783980,6.57785664,174.16,174.12,8.1]
[1641221784181,6.57785664,174.16,174.13,23.23650223]
[1641221784383,6.57785664,174.16,174.15,2.25553741]
[1641221784580,6.57785664,174.16,174.15,2.51553741]
[1641221785383,6.57785664,174.16,174.15,11.12553741]
[1641221785784,6.57785664,174.16,174.15,10.86553741]
[1641221786984,6.57785664,174.16,174.15,11.12553741]
[1641221788487,94.0,174.2,174.16,6.57785664]
[1641221788686,94.0,174.2,174.19,29.91692403]
[1641221789216,94.0,174.2,174.19,30.17692403]
[1641221790387,94.0,174.2,174.19,38.78412403]
[1641221790590,95.2769,174.29,174.19,38.78412403]
[1641221790988,95.2769,174.29,174.2,8.1]
[1641221791491,94.0,174.29,174.2,9.78669368]
[1641221791690,94.0,174.29,174.25,2.91744066]
[1641221792990,94.0,174.29,174.24,31.56263028]
[1641221793189,94.0,174.29,174.24,8.6064]
[1641221793389,94.0,174.29,174.18,36.7906]
[1641221793590,1.3331,174.3,174.2,0.26]
[1641221793995,1.5931,174.3,174.2,2.72705643]
[1641221794292,1.3331,174.3,174.2,2.98705643]
[1641221794491,1.5931,174.3,174.23,31.53967226]
[1641221794892,1.3331,174.3,174.23,31.53967226]
[1641221795693,1.3331,174.3,174.23,40.14697226]
[1641221796393,1.3331,174.3,174.23,11.43357089]
[1641221796794,1.3331,174.3,174.23,8.6073]
[1641221796993,1.5931,174.3,174.21,8.6079]
[1641221797995,1.5931,174.3,174.22,2.83392832]
[1641221798396,10.2009,174.3,174.22,2.83392832]
[1641221799394,10.2009,174.3,174.22,27.59372545]
[1641221799797,10.2009,174.3,174.22,36.20142545]
[1641221800396,10.2009,174.3,174.22,11.44162832]
[1641221800598,10.2009,174.3,174.18,8.1]
[1641221800799,10.2009,174.3,174.18,8.36]
[1641221800998,11.62759368,174.3,174.19,8.6089]
[1641221801199,11.62759368,174.3,174.14,115.0763]
[1641221801599,8.1,174.29,174.15,3.03866623]
[1641221801802,8.6119,174.23,174.15,3.03866623]
[1641221802000,8.8719,174.23,174.15,3.03866623]
[1641221802200,8.8719,174.23,174.14,8.6114]
[1641221802699,8.8719,174.23,174.09,8.1]
[1641221803099,8.8719,174.23,174.12,8.6124]
[1641221803301,9.3719,174.23,174.13,2.58747328]
[1641221805631,8.6119,174.23,174.13,2.58747328]
[1641221805830,1.62090808,174.24,174.13,2.58747328]
[1641221806229,1.62090808,174.24,174.17,2.57937647]
[1641221806430,9.8463,174.25,174.17,2.57937647]
[1641221807030,10.1063,174.25,174.17,2.57937647]
[1641221807431,10.1063,174.25,174.17,11.18967647]
[1641221807832,9.8463,174.25,174.17,11.18967647]
[1641221808236,9.8463,174.25,174.18,27.78332128]
[1641221808634,1.236,174.25,174.18,36.39322128]
[1641221808837,1.62090808,174.27,174.18,36.65322128]
[1641221809037,1.62090808,174.27,174.18,38.07991496]
[1641221809935,1.3331,174.3,174.18,38.07991496]
[1641221810136,1.3331,174.3,174.2,2.75136024]
[1641221810340,1.3288,174.32,174.25,33.7745273]
[1641221810543,94.0,174.28,174.25,34.0345273]
[1641221811537,94.0,174.28,174.26,8.6054]
[1641221812540,3.03219997,174.28,174.26,8.6054]
[1641221812738,6.06429997,174.28,174.26,8.6054]
[1641221812939,1.3288,174.32,174.25,8.6064]
[1641221813142,76.7555,174.36,174.25,8.6064]
[1641221813341,78.18219368,174.36,174.25,8.6064]
[1641221813539,78.44219368,174.36,174.25,8.6064]
[1641221814141,8.6061,174.34,174.25,8.6064]
[1641221814545,10.48700808,174.34,174.25,8.6064]
[1641221815243,8.8661,174.34,174.25,8.6064]
[1641221816243,8.6061,174.34,174.25,8.6064]
[1641221816444,8.6061,174.34,174.25,8.8664]
[1641221821150,8.6061,174.34,174.25,16.9664]
[1641221822155,8.6061,174.34,174.25,8.6064]
[1641221822352,1.42669368,174.33,174.18,8.1]
[1641221822551,9.78669368,174.33,174.15,8.1]
[1641221822751,10.28669368,174.33,174.15,8.1]
[1641221822950,1.42669368,174.32,174.15,8.1]
[1641221823150,4.36590176,174.32,174.16,8.82158003]
[1641221823350,28.7009,174.29,174.17,8.6103]
[1641221823556,8.6105,174.25,174.17,8.6103]
[1641221823751,28.9609,174.29,174.16,6.57785664]
[1641221823950,0.26,174.25,174.16,6.57785664]
[1641221824150,0.26,174.29,174.16,6.57785664]
[1641221824353,28.704,174.27,174.16,6.57785664]
[1641221824552,28.964,174.27,174.16,6.57785664]
[1641221825554,8.6117,174.22,174.16,6.57785664]
[1641221826052,8.8717,174.22,174.16,6.57785664]
[1641221827654,8.6117,174.22,174.16,6.57785664]
[1641221828254,8.8717,174.22,174.16,6.57785664]
[1641221828656,8.6117,174.22,174.16,6.57785664]
[1641221828855,1.2372,174.26,174.16,6.57785664]
[1641221829154,1.62090808,174.27,174.17,3.03728283]
[1641221829355,1.62090808,174.27,174.17,27.42509087]
[1641221829557,2.90660808,174.29,174.17,27.68509087]
[1641221830156,8.6101,174.26,174.17,36.29499087]
[1641221831355,8.6101,174.26,174.17,44.39499087]
[1641221832556,8.1101,174.26,174.17,44.39499087]
[1641221833557,8.1101,174.26,174.17,20.00718283]
[1641221833755,8.1101,174.26,174.16,6.57785664]
[1641221833756,8.3701,174.26,174.16,6.57785664]
[1641221834358,9.79679368,174.26,174.16,6.57785664]
[1641221834558,9.29679368,174.26,174.16,6.57785664]
[1641221836760,8.1,174.25,174.16,6.57785664]
[1641221836959,64.0,174.22,174.02,84.9047]
[1641221837161,8.6156,174.2,174.02,84.9047]
[1641221837365,2.5251,174.19,174.02,84.9047]
[1641221837663,4.21179368,174.19,174.03,29.68587883]
[1641221837863,4.21179368,174.19,174.03,40.88077212]
[1641221837864,4.71179368,174.19,174.03,40.88077212]
[1641221838060,8.6159,174.14,174.03,40.88077212]
[1641221838265,8.6159,174.14,174.03,41.14077212]
[1641221839262,8.6159,174.14,174.03,49.24077212]
[1641221839462,8.8759,174.14,174.03,16.7166]
[1641221839663,1.42669368,174.13,174.0,72.8393]
[1641221839864,8.6184,174.09,174.0,72.8393]
[1641221840062,8.8784,174.09,174.0,72.8393]
[1641221840663,2.5889,174.12,174.01,2.54945991]
[1641221840864,2.5889,174.12,174.01,11.16675991]
[1641221841063,2.5889,174.12,174.01,19.52675991]
[1641221842466,2.5889,174.12,174.01,19.26675991]
[1641221843266,28.7208,174.18,174.01,19.26675991]
[1641221843468,2.5988,174.17,174.02,1.42669368]
[1641221843672,1.62090808,174.2,174.08,8.6139]
[1641221843869,2.5726,174.19,174.09,2.26123493]
[1641221844470,11.1863,174.19,174.09,2.52123493]
[1641221845503,11.1863,174.19,174.09,11.13473493]
[1641221846003,11.4463,174.19,174.09,2.26123493]
[1641221846402,1.42669368,174.18,174.09,2.26123493]
[1641221846604,8.6145,174.17,174.09,2.52123493]
[1641221847004,8.8745,174.17,174.09,2.52123493]
[1641221847407,0.26,174.17,174.09,2.52123493]
[1641221847710,8.6138,174.18,174.09,11.13483493]
[1641221848107,8.8738,174.18,174.09,11.13483493]
[1641221848406,8.6138,174.18,174.09,11.13483493]
[1641221848709,2.5726,174.19,174.09,11.13483493]
[1641221849106,2.8326,174.19,174.09,11.13483493]
[1641221849506,2.5726,174.19,174.09,11.13483493]
[1641221849707,11.186,174.19,174.09,11.13483493]
[1641221850808,11.446,174.19,174.09,11.13483493]
[1641221851609,11.446,174.19,174.09,10.87483493]
[1641221851808,11.446,174.19,174.09,2.26123493]
[1641221852207,11.446,174.19,174.07,85.9369]
[1641221852409,12.87269368,174.19,174.07,77.3224]
[1641221852609,20.97269368,174.19,174.07,77.3224]
[1641221853210,20.97269368,174.19,174.08,2.95567152]
[1641221853611,12.87269368,174.19,174.08,2.95567152]
[1641221855114,11.446,174.19,174.08,2.95567152]
[1641221856513,11.446,174.19,174.08,11.57007152]
[1641221859615,11.186,174.19,174.08,11.57007152]
[1641221860017,11.186,174.19,174.08,11.83007152]
[1641221861019,11.446,174.19,174.08,11.57007152]
[1641221861821,11.186,174.19,174.08,11.57007152]
[1641221862020,11.186,174.19,174.08,11.83007152]
[1641221863023,11.446,174.19,174.08,11.57007152]
[1641221867325,11.186,174.19,174.08,11.57007152]
[1641221867727,11.186,174.19,174.08,11.83007152]
[1641221868339,11.186,174.19,174.08,11.57007152]
[1641221868739,11.446,174.19,174.08,11.57007152]
[1641221869141,11.446,174.19,174.08,11.83007152]
[1641221869742,11.446,174.19,174.08,11.57007152]
[1641221869941,11.446,174.19,174.08,11.83007152]
[1641221871345,11.186,174.19,174.08,11.83007152]
[1641221871546,11.446,174.19,174.08,11.83007152]
[1641221872368,11.186,174.19,174.08,11.83007152]
[1641221873770,11.446,174.19,174.08,11.83007152]
[1641221875372,11.186,174.19,174.08,11.83007152]
[1641221875573,11.446,174.19,174.08,11.83007152]
[1641221876575,8.6134,174.19,174.08,11.83007152]
[1641221876777,8.6124,174.2,174.09,8.1]
[1641221876977,8.6124,174.2,174.13,8.612]
[1641221877376,8.6124,174.2,174.1,23.08552902]
[1641221877577,8.6124,174.2,174.1,31.44552902]
[1641221878277,8.6124,174.2,174.11,2.58519169]
[1641221878576,8.6124,174.2,174.12,8.6128]
[1641221878774,8.8724,174.2,174.12,8.6128]
[1641221878975,8.8724,174.2,174.12,8.8728]
[1641221883783,8.6124,174.2,174.12,8.8728]
[1641221884481,8.6124,174.2,174.12,8.6128]
[1641221884683,8.6124,174.2,174.07,77.3224]
[1641221884882,16.7124,174.2,174.07,77.3224]
[1641221885283,8.6124,174.2,174.07,85.4224]
[1641221885482,8.6144,174.16,174.07,85.4224]
[1641221885683,8.6144,174.16,174.08,10.8569168]
[1641221886284,1.3118,174.19,174.08,10.8569168]
[1641221886484,8.6137,174.18,174.08,10.8569168]
[1641221887084,8.6137,174.18,174.08,11.1169168]
[1641221892991,8.6128,174.19,174.09,8.1]
[1641221893192,1.62090808,174.23,174.16,8.6106]
[1641221893394,1.62090808,174.23,174.17,2.84352017]
[1641221893591,1.2669,174.25,174.17,3.10352017]
[1641221894398,1.2669,174.25,174.18,8.61]
[1641221895200,9.8769,174.25,174.15,8.1]
[1641221895399,9.8769,174.25,174.15,16.7111]
[1641221895599,10.1369,174.25,174.15,16.7111]
[1641221895803,9.8769,174.25,174.15,16.7111]
[1641221896003,10.1369,174.25,174.15,16.7111]
[1641221896201,10.1369,174.25,174.15,19.71429059]
[1641221897403,11.56359368,174.25,174.15,19.71429059]
[1641221897606,11.56359368,174.25,174.15,11.10319059]
[1641221898232,11.56359368,174.25,174.15,8.1]
[1641221899530,11.56359368,174.25,174.14,75.13527676]
[1641221900130,11.56359368,174.25,174.14,72.3604]
[1641221900333,8.1,174.24,174.14,72.3604]
[1641221900632,8.6129,174.19,174.14,72.3604]
[1641221900836,8.6129,174.19,174.08,78.2298]
[1641221901031,10.29959368,174.19,174.09,2.20389813]
[1641221902232,8.8729,174.19,174.09,2.20389813]
[1641221902431,8.8729,174.19,174.09,10.81809813]
[1641221903032,8.6129,174.19,174.09,11.07809813]
[1641221903232,8.8729,174.19,174.09,11.07809813]
[1641221903634,8.6129,174.19,174.09,11.07809813]
[1641221903832,8.8729,174.19,174.09,11.07809813]
[1641221904032,8.6129,174.19,174.09,11.07809813]
[1641221905835,8.8729,174.19,174.09,8.6142]
[1641221906035,1.42669368,174.18,174.07,8.615]
[1641221906236,9.52669368,174.18,174.06,74.1825]
[1641221906436,8.6165,174.12,174.02,9.6759625]
[1641221906637,13.4635,174.12,174.02,9.6759625]
[1641221906838,14.2235,174.12,174.03,2.93731422]
[1641221907037,13.7235,174.12,174.03,2.93731422]
[1641221907239,8.8765,174.12,174.03,2.93731422]
[1641221907836,9.3765,174.12,174.03,2.93731422]
[1641221908038,8.8765,174.12,174.03,2.93731422]
[1641221911038,8.8765,174.12,174.02,10.1931625]
[1641221911241,8.8765,174.12,174.02,1.5759625]
[1641221912041,8.8765,174.12,174.03,2.42233007]
[1641221912439,8.6165,174.12,174.03,2.42233007]
[1641221913440,8.6165,174.12,174.02,1.5759625]
[1641221913642,10.04319368,174.12,174.02,1.5759625]
[1641221913841,10.30319368,174.12,174.02,1.5759625]
[1641221914242,11.64159368,174.12,174.02,1.5759625]
[1641221915147,1.2364,174.15,174.03,31.12261989]
[1641221915443,1.62090808,174.17,174.04,2.19932214]
[1641221915644,1.62090808,174.17,174.05,8.1]
[1641221916044,75.82780808,174.22,174.05,9.78669368]
[1641221916243,2.89790808,174.22,174.05,9.78669368]
[1641221916443,8.6132,174.19,174.11,2.30443701]
[1641221917845,8.8732,174.19,174.11,2.30443701]
[1641221918445,8.8732,174.19,174.11,10.91763701]
[1641221919253,8.8732,174.19,174.11,2.30443701]
[1641221919849,13.7572,174.19,174.08,8.6146]
[1641221920048,21.8572,174.19,174.07,76.0609]
[1641221920248,21.8572,174.19,174.02,9.6759625]
[1641221920448,22.3572,174.19,174.02,9.6759625]
[1641221920847,22.3572,174.19,174.03,2.77312839]
[1641221921048,1.3236,174.18,174.03,83.33082839]
[1641221921251,8.6166,174.12,174.04,8.6166]
[1641221921649,8.8766,174.12,174.04,8.6166]
[1641221922048,8.8766,174.12,174.03,75.23082839]
[1641221922449,8.8766,174.12,174.03,72.4577]
[1641221923448,8.8766,174.12,174.04,3.00312687]
[1641221924452,8.6166,174.12,174.04,3.00312687]
[1641221924850,8.8766,174.12,174.03,81.0751]
[1641221925051,8.8766,174.12,174.03,72.4577]
[1641221926254,8.8766,174.12,174.01,2.51141809]
[1641221927056,10.1799,174.12,174.01,2.51141809]
[1641221927257,18.2799,174.12,174.01,2.51141809]
[1641221927856,55.250824,174.1,174.0,86.5942]
[1641221928061,55.510824,174.1,174.0,86.5942]
[1641221928260,8.6192,174.07,174.0,86.5942]
[1641221928457,8.6192,174.07,174.0,8.619]
[1641221928857,8.6192,174.07,174.01,2.18125522]
[1641221930759,1.2415,174.09,174.01,2.18125522]
[1641221930960,8.6184,174.09,174.01,11.05965522]
[1641221931158,55.250824,174.1,174.01,11.05965522]
[1641221931959,55.250824,174.1,174.01,8.6184]
[1641221931960,64.128324,174.1,174.01,8.6184]
[1641221932162,64.128324,174.1,174.0,8.619]
[1641221933164,64.128324,174.1,174.0,11.61037151]
[1641221936068,63.868324,174.1,174.0,11.87037151]
[1641221943904,63.868324,174.1,174.01,8.1]
[1641221944106,63.868324,174.1,174.01,8.36]
[1641221944408,63.868324,174.1,174.04,2.5199643]
[1641221944704,63.868324,174.1,174.04,2.7799643]
[1641221944904,55.250824,174.1,174.04,2.7799643]
[1641221945306,55.250824,174.1,174.04,11.3969643]
[1641221947812,55.250824,174.1,174.04,19.4969643]
[1641221950816,55.250824,174.1,174.04,20.92365798]
[1641221957824,55.250824,174.1,174.04,20.66365798]
[1641221958054,55.250824,174.1,174.04,19.2369643]
[1641221958826,55.250824,174.1,173.94,14.09515964]
[1641221959029,63.85451768,174.1,173.97,8.1]
[1641221959428,63.85451768,174.1,173.97,38.30675528]
[1641221959729,55.250824,174.1,173.98,2.6632945]
[1641221959928,55.250824,174.1,174.04,2.75669806]
[1641221960730,64.0,174.09,174.04,9.806e-05]
[1641221960930,64.128124,174.1,174.02,8.6178]
[1641221961129,0.26,174.09,174.02,8.6178]
[1641221961332,1.42669368,174.08,174.02,8.6178]
[1641221961731,1.42669368,174.08,173.98,8.1]
[1641221961932,1.68669368,174.08,174.01,2.20772405]
[1641221963537,10.30519368,174.08,174.01,2.20772405]
[1641221963736,8.8785,174.08,174.01,2.20772405]
[1641221965034,55.250824,174.1,174.01,11.08592405]
[1641221965434,55.250824,174.1,174.01,10.82592405]
[1641221965634,55.250824,174.1,174.01,11.08592405]
[1641221966434,63.868024,174.1,174.01,11.08592405]
[1641221966635,55.250824,174.1,174.01,11.08592405]
[1641221968435,63.868224,174.1,174.01,11.08592405]
[1641221968836,64.128224,174.1,174.01,10.82592405]
[1641221969040,64.128224,174.1,174.01,11.08592405]
[1641221971741,64.128224,174.1,174.01,10.82592405]
[1641221972142,64.128224,174.1,174.01,11.08592405]
[1641221973146,1.42669368,174.09,174.0,8.6189]
[1641221973344,8.6192,174.06,173.96,146.9287625]
[1641221973845,9.3792,174.06,173.96,1.5759625]
[1641221974045,1.42669368,174.05,173.96,1.5759625]
[1641221974446,1.68669368,174.05,173.96,1.5759625]
[1641221974646,8.6217,174.01,173.96,1.5759625]
[1641221975846,8.6217,174.01,173.96,3.84666529]
[1641221976046,1.3034,174.05,173.96,3.84666529]
[1641221976645,1.3034,174.05,173.96,1.5759625]
[1641221976946,2.73009368,174.05,173.96,1.5759625]
[1641221977147,8.6213,174.02,173.96,1.5759625]
[1641221978147,8.8813,174.02,173.96,1.5759625]
[1641221978548,8.6213,174.02,173.96,1.5759625]
[1641221981975,8.6213,174.02,173.96,1.8359625]
[1641221983178,8.6213,174.02,173.97,2.37759214]
[1641221983579,8.6206,174.04,173.97,2.63759214]
[1641221983782,8.6206,174.04,173.97,0.26]
[1641221983981,8.6206,174.04,173.96,1.8359625]
[1641221984980,8.6206,174.04,173.96,10.1966625]
[1641221985180,8.6206,174.04,173.96,1.5759625]
[1641221985380,10.04729368,174.04,173.96,1.5759625]
[1641221986080,10.30729368,174.04,173.96,1.5759625]
[1641221989085,10.80729368,174.04,173.96,1.5759625]
[1641221989885,10.30729368,174.04,173.96,1.5759625]
[1641221990484,8.8806,174.04,173.96,1.5759625]
[1641221991589,10.30729368,174.04,173.96,1.5759625]
[1641221994392,10.80729368,174.04,173.96,1.5759625]
[1641221994792,10.30729368,174.04,173.96,1.5759625]
[1641221997096,18.40729368,174.04,173.96,1.5759625]
[1641221997296,18.90729368,174.04,173.96,1.5759625]
[1641221998298,1.2317,174.03,173.96,1.5759625]
[1641221998497,8.6233,174.0,173.96,1.5759625]
[1641221998897,8.8833,174.0,173.96,1.5759625]
[1641222000223,8.6233,174.0,173.97,2.16503829]
[1641222000423,1.2317,174.03,173.96,1.5759625]
[1641222000821,1.288,174.07,173.96,1.5759625]
[1641222001022,1.288,174.07,173.96,1.8359625]
[1641222001221,1.288,174.07,173.96,1.5759625]
[1641222001427,8.6207,174.03,173.96,12.71929915]
[1641222003625,8.6207,174.03,173.96,1.5759625]
[1641222003925,65.42669368,174.02,173.86,82.1841]
[1641222004125,8.1,174.01,173.86,74.0841]
[1641222004332,8.6243,173.96,173.86,74.0841]
[1641222004726,8.6243,173.96,173.87,75.72314268]
[1641222005124,8.6243,173.96,173.88,8.6245]
[1641222005325,8.6239,173.97,173.88,8.6245]
[1641222005526,3.94899368,174.0,173.88,8.6245]
[1641222005725,3.94899368,174.0,173.88,8.8845]
[1641222005726,2.5223,174.0,173.88,8.8845]
[1641222005925,2.5223,174.0,173.88,8.6245]
[1641222006126,3.94899368,174.0,173.88,8.6245]
[1641222006933,8.6238,173.98,173.88,8.6245]
[1641222007632,8.8838,173.98,173.87,72.6798]
[1641222007831,8.6238,173.98,173.87,72.9398]
[1641222008231,8.8838,173.98,173.87,72.6798]
[1641222008430,1.3043,173.97,173.87,72.6798]
[1641222008630,8.6254,173.94,173.87,72.6798]
[1641222009030,8.6254,173.94,173.88,2.52198078]
[1641222012131,8.8854,173.94,173.88,2.52198078]
[1641222012333,8.41656117,173.94,173.88,2.52198078]
[1641222012732,8.15656117,173.94,173.88,2.52198078]
[1641222013134,8.6248,173.96,173.88,2.52198078]
[1641222013335,8.6248,173.96,173.88,2.78198078]
[1641222013534,1.3043,173.97,173.88,2.78198078]
[1641222013739,1.2478,174.0,173.93,2.8976263]
[1641222014734,1.2478,174.0,173.92,1.5627869]
[1641222014935,9.8702,174.0,173.92,1.8227869]
[1641222015336,13.35319745,174.06,173.92,1.8227869]
[1641222015535,1.2867,174.04,173.92,1.8227869]
[1641222015936,1.2867,174.04,173.93,2.75281449]
[1641222016235,9.9075,174.04,173.93,2.75281449]
[1641222016435,9.9075,174.04,173.93,3.01281449]
[1641222017538,9.9075,174.04,173.96,11.25179179]
[1641222017937,9.9075,174.04,173.96,11.51179179]
[1641222018638,8.6199,174.05,173.96,11.51179179]
[1641222018839,8.6199,174.05,173.96,8.8804]
[1641222020440,8.6199,174.05,173.96,8.6204]